[Event "51st La Roda Open 2025"]
[Site "La Roda"]
[Date "2025.04.17"]
[Round "4.12"]
[White "Talavera Garcia, Santiago"]
[Black "Aishwin Daniel"]
[Result "0-1"]
[Annotator "RC"]
[ECO "C18"]
[WhiteElo "2024"]
[BlackElo "2236"]
[PlyCount "84"]
[EventDate "2025.04.15"]
[EventType "swiss"]
[EventCountry "ESP"]
[SourceTitle "playchess.com"]
[Source "ChessBase"]
[SourceQuality "1"]
[TimeControl "5400+30"]

1. e4 {[%emt 0:00:02]} e6 {[%emt 0:07:32]} 2. d4 {[%emt 0:00:07]} d5 {[%emt 0:00:07]} 3. Nc3 {[%emt 0:00:17]} Bb4 {[%emt 0:00:09]} 4. e5 {[%emt 0:00:24]} c5 {[%emt 0:00:30]} 5. a3 {[%emt 0:00:11]} Bxc3+ {[%emt 0:00:07]} 6. bxc3 {[%emt 0:00:07]} Ne7 {[%emt 0:00:36]} 7. Qg4 {[%emt 0:00:28]} Qc7 {[%emt 0:00:44]} 8. Bd3 {[%emt 0:00:31]} c4 {[%emt 0:04:02]} 9. Be2 {[%emt 0:00:44]} Nf5 {[%emt 0:00:40]} 10. h4 {[%emt 0:02:06]} Nc6 {[%emt 0:01:21]} 11. h5 {[%emt 0:04:29]} Qa5 {[%emt 0:02:41]} 12. Bd2 {[%emt 0:00:23]} h6 {[%emt 0:00:19]} 13. Qf4 {[%emt 0:05:02]} Bd7 {[%emt 0:04:28]} 14. g4 {[%emt 0:03:24]} Nfe7 {[%emt 0:00:19]} 15. Rh3 {[%emt 0:07:56]} Rf8 {[%emt 0:08:20]} 16. Nf3 {[%emt 0:30:54]} f6 {[%emt 0:06:55]} 17. exf6 {[%emt 0:01:57]} Rxf6 {[%emt 0:00:09]} 18. Qh2 {[%emt 0:03:02]} O-O-O {[%emt 0:01:45]} 19. Nh4 {[%emt 0:15:38]} Rdf8 {[%emt 0:04:43]} 20. Rf3 {[%emt 0:03:49]} Qb6 {[%emt 0:09:03]} 21. Bc1 {[%emt 0:19:29]} Qd8 {[%emt 0:12:20]} 22. Qg3 {[%emt 0:00:00]} Ng8 {[%emt 0:02:54]} 23. Ng6 {[%emt 0:00:00]} Rxf3 {[%emt 0:02:58]} 24. Bxf3 {[%emt 0:00:00]} Re8 {[%emt 0:00:52]} 25. Qd6 {[%emt 0:00:00]} Qb6 {[%emt 0:05:59]} 26. Bf4 {[%emt 0:00:00]} e5 {[%emt 0:01:11]} 27. dxe5 {[%emt 0:00:59]} Nxe5 {[%emt 0:03:23]} 28. Qxe5 {[%emt 0:00:34]} Qb2 {[%emt 0:01:17]} 29. Rd1 {[%emt 0:00:42]} Qxc3+ {[%emt 0:01:35]} 30. Kf1 {[%emt 0:01:13]} Rxe5 {[%emt 0:00:35]} 31. Nxe5 {[%emt 0:00:06]} Nf6 {[%emt 0:00:49]} 32. Bxd5 {[%emt 0:00:58]} Nxd5 {[%emt 0:02:03]} 33. Rxd5 {[%emt 0:00:08]} Bc6 {[%emt 0:03:08]} 34. Rc5 {[%emt 0:00:05]} Qxc2 {[%emt 0:01:37]} 35. Nxc6 {[%emt 0:00:39]} Qd1+ {[%emt 0:01:01]} 36. Kg2 {[%emt 0:00:12]} Qxg4+ {[%emt 0:00:38]} 37. Bg3 {[%emt 0:01:02]} bxc6 {[%emt 0:00:46]} 38. Rxc6+ {[%emt 0:00:07]} Kb7 {[%emt 0:00:18]} 39. Rg6 {[%emt 0:01:23]} Qd4 {[%emt 0:00:58]} 40. a4 {[%emt 0:00:27]} c3 {[%emt 0:04:32]} 41. a5 {[%emt 0:00:11]} c2 {[%emt 0:01:00]} 42. a6+ {[%emt 0:00:03]} Ka8 {[%emt 0:00:27]} 0-1

[Event "51st La Roda Open 2025"]
[Site "La Roda"]
[Date "2025.04.17"]
[Round "4.13"]
[White "Cuellar Montes, Alejandro"]
[Black "Del Rosario Silva, Dexnisi"]
[Result "0-1"]
[Annotator "RC"]
[ECO "B07"]
[WhiteElo "2200"]
[BlackElo "2013"]
[PlyCount "94"]
[EventDate "2025.04.15"]
[EventType "swiss"]
[EventCountry "ESP"]
[SourceTitle "playchess.com"]
[Source "ChessBase"]
[SourceQuality "1"]
[TimeControl "5400+30"]

1. e4 {[%emt 0:02:07]} d6 {[%emt 0:00:02]} 2. d4 {[%emt 0:00:12]} Nf6 {[%emt 0:00:03]} 3. Nc3 {[%emt 0:00:10]} e5 {[%emt 0:00:05]} 4. Nge2 {[%emt 0:00:14]} c6 {[%emt 0:00:45]} 5. h3 {[%emt 0:00:28]} b5 {[%emt 0:00:30]} 6. a3 {[%emt 0:00:14]} h5 {[%emt 0:00:14]} 7. g3 {[%emt 0:00:23]} Nbd7 {[%emt 0:00:42]} 8. Bg2 {[%emt 0:00:21]} Bb7 {[%emt 0:00:44]} 9. O-O {[%emt 0:01:20]} Be7 {[%emt 0:00:06]} 10. Be3 {[%emt 0:01:25]} O-O {[%emt 0:01:45]} 11. f4 {[%emt 0:07:03]} a5 {[%emt 0:09:08]} 12. Nb1 {[%emt 0:13:05]} Re8 {[%emt 0:07:16]} 13. Nd2 {[%emt 0:12:37]} Bf8 {[%emt 0:03:46]} 14. Bf2 {[%emt 0:04:32]} Qc7 {[%emt 0:21:13]} 15. Re1 {[%emt 0:11:06]} b4 {[%emt 0:12:06]} 16. c3 {[%emt 0:12:06]} bxa3 {[%emt 0:00:35]} 17. bxa3 {[%emt 0:00:10]} c5 {[%emt 0:03:43]} 18. fxe5 {[%emt 0:02:31]} dxe5 {[%emt 0:00:30]} 19. d5 {[%emt 0:00:05]} c4 {[%emt 0:00:34]} 20. Nf1 {[%emt 0:06:53]} Nc5 {[%emt 0:00:32]} 21. Nc1 {[%emt 0:00:08]} Ba6 {[%emt 0:02:09]} 22. g4 {[%emt 0:01:42]} hxg4 {[%emt 0:00:38]} 23. hxg4 {[%emt 0:00:01]} Qc8 {[%emt 0:06:13]} 24. Bf3 {[%emt 0:01:11]} Nh7 {[%emt 0:03:16]} 25. Ng3 {[%emt 0:07:12]} Rd8 {[%emt 0:05:20]} 26. Be3 {[%emt 0:02:56]} Ne6 {[%emt 0:05:45]} 27. Qe2 {[%emt 0:06:17]} Neg5 {[%emt 0:00:35]} 28. Kg2 {[%emt 0:00:25]} Bc5 {[%emt 0:01:10]} 29. Bd2 {[%emt 0:02:42]} Rb8 {[%emt 0:00:45]} 30. Ra2 {[%emt 0:00:27]} Rb6 {[%emt 0:06:37]} 31. Be3 {[%emt 0:04:46]} Rg6 {[%emt 0:01:40]} 32. Nf5 {[%emt 0:00:51]} Nf6 {[%emt 0:01:07]} 33. Bxc5 {[%emt 0:00:44]} Qxc5 {[%emt 0:00:02]} 34. Kg3 {[%emt 0:00:32]} Nxf3 {[%emt 0:02:06]} 35. Qxf3 {[%emt 0:00:28]} Bc8 {[%emt 0:00:17]} 36. Qe3 {[%emt 0:00:34]} Rxg4+ {[%emt 0:00:20]} 37. Kf3 {[%emt 0:00:26]} Qxe3+ {[%emt 0:00:35]} 38. Nxe3 {[%emt 0:00:25]} Rxe4 {[%emt 0:00:07]} 39. Ne2 {[%emt 0:00:26]} Rh4 {[%emt 0:01:55]} 40. Ng3 {[%emt 0:00:33]} e4+ {[%emt 0:00:45]} 41. Kg2 {[%emt 0:00:13]} Nxd5 {[%emt 0:00:24]} 42. Nxc4 {[%emt 0:00:20]} Nf4+ {[%emt 0:01:03]} 43. Kg1 {[%emt 0:00:19]} Be6 {[%emt 0:00:29]} 44. Rxe4 {[%emt 0:01:10]} Rd1+ {[%emt 0:00:42]} 45. Kf2 {[%emt 0:00:36]} Nh3+ {[%emt 0:01:37]} 46. Ke2 {[%emt 0:00:14]} Rxe4+ {[%emt 0:00:11]} 47. Kxd1 {[%emt 0:00:42]} Rxc4 {[%emt 0:00:05]} 0-1

[Event "51st La Roda Open 2025"]
[Site "La Roda"]
[Date "2025.04.17"]
[Round "4.14"]
[White "Juan Lepp, Jaime Boris"]
[Black "Gonzalez Lema, Carlos"]
[Result "1-0"]
[Annotator "RC"]
[ECO "C48"]
[WhiteElo "2015"]
[BlackElo "2200"]
[PlyCount "85"]
[EventDate "2025.04.15"]
[EventType "swiss"]
[EventCountry "ESP"]
[SourceTitle "playchess.com"]
[Source "ChessBase"]
[SourceQuality "1"]
[TimeControl "5400+30"]

1. e4 {[%emt 0:00:03]} e5 {[%emt 0:00:07]} 2. Nf3 {[%emt 0:00:18]} Nc6 {[%emt 0:00:08]} 3. Nc3 {[%emt 0:00:35]} Nf6 {[%emt 0:00:07]} 4. Bb5 {[%emt 0:00:10]} Bd6 {[%emt 0:00:12]} 5. O-O {[%emt 0:00:29]} a6 {[%emt 0:00:33]} 6. Bxc6 {[%emt 0:04:51]} dxc6 {[%emt 0:00:11]} 7. d3 {[%emt 0:00:09]} Bg4 {[%emt 0:04:00]} 8. Qe2 {[%emt 0:01:26]} Qd7 {[%emt 0:09:13]} 9. Nd1 {[%emt 0:01:05]} O-O-O {[%emt 0:01:35]} 10. Ne3 {[%emt 0:03:26]} h5 {[%emt 0:00:26]} 11. h3 {[%emt 0:01:34]} Bc5 {[%emt 0:21:27]} 12. hxg4 {[%emt 0:04:29]} hxg4 {[%emt 0:00:38]} 13. Nxe5 {[%emt 0:13:28]} Qe6 {[%emt 0:00:04]} 14. N5xg4 {[%emt 0:09:02]} Rh7 {[%emt 0:04:43]} 15. Nxf6 {[%emt 0:05:59]} Qxf6 {[%emt 0:00:04]} 16. Qg4+ {[%emt 0:01:59]} Kb8 {[%emt 0:00:06]} 17. f3 {[%emt 0:03:48]} Rdh8 {[%emt 0:05:45]} 18. Kf2 {[%emt 0:00:35]} Rh6 {[%emt 0:00:03]} 19. Qf5 {[%emt 0:06:37]} Qe7 {[%emt 0:02:57]} 20. Ke2 {[%emt 0:03:07]} Rh5 {[%emt 0:02:20]} 21. Qf4 {[%emt 0:00:05]} g6 {[%emt 0:02:46]} 22. Ng4 {[%emt 0:04:31]} f5 {[%emt 0:01:00]} 23. Nf2 {[%emt 0:01:12]} Rh2 {[%emt 0:01:17]} 24. Rg1 {[%emt 0:02:05]} fxe4 {[%emt 0:02:13]} 25. dxe4 {[%emt 0:01:45]} Qe6 {[%emt 0:00:16]} 26. b3 {[%emt 0:03:28]} Bd4 {[%emt 0:14:07]} 27. Rb1 {[%emt 0:00:10]} R2h4 {[%emt 0:03:55]} 28. Qd2 {[%emt 0:01:46]} Qe5 {[%emt 0:00:27]} 29. Qg5 {[%emt 0:26:48]} Qe8 {[%emt 0:07:20]} 30. Bb2 {[%emt 0:00:00]} R8h5 {[%emt 0:00:14]} 31. Qd2 {[%emt 0:00:00]} Bb6 {[%emt 0:02:05]} 32. Bf6 {[%emt 0:00:00]} Rd5 {[%emt 0:00:04]} 33. Qc3 {[%emt 0:00:00]} Rc5 {[%emt 0:00:41]} 34. Qb2 {[%emt 0:00:00]} Rh2 {[%emt 0:01:30]} 35. Bd4 {[%emt 0:00:00]} Rxc2+ {[%emt 0:00:07]} 36. Qxc2 {[%emt 0:00:00]} Bxd4 {[%emt 0:00:02]} 37. b4 {[%emt 0:00:00]} Qe7 {[%emt 0:01:56]} 38. Qd2 {[%emt 0:00:00]} c5 {[%emt 0:02:06]} 39. Rbd1 {[%emt 0:00:01]} Rh8 {[%emt 0:03:07]} 40. bxc5 {[%emt 0:00:24]} Bxc5 {[%emt 0:00:05]} 41. Rh1 {[%emt 0:00:20]} Re8 {[%emt 0:00:59]} 42. Qd7 {[%emt 0:01:17]} Qe5 {[%emt 0:00:03]} 43. Nd3 {[%emt 0:00:27]} 1-0

[Event "51st La Roda Open 2025"]
[Site "La Roda"]
[Date "2025.04.17"]
[Round "4.15"]
[White "Pomes Marcet, Joan"]
[Black "Diaz Rodriguez, Jose Antonio"]
[Result "1/2-1/2"]
[Annotator "RC"]
[ECO "A55"]
[WhiteElo "2187"]
[BlackElo "2006"]
[PlyCount "59"]
[EventDate "2025.04.15"]
[EventType "swiss"]
[EventCountry "ESP"]
[SourceTitle "playchess.com"]
[Source "ChessBase"]
[SourceQuality "1"]
[TimeControl "5400+30"]

1. d4 {[%emt 0:00:02]} Nf6 {[%emt 0:00:27]} 2. c4 {[%emt 0:00:08]} d6 {[%emt 0:01:11]} 3. Nc3 {[%emt 0:00:44]} Nbd7 {[%emt 0:00:23]} 4. Nf3 {[%emt 0:00:28]} e5 {[%emt 0:00:09]} 5. g3 {[%emt 0:00:33]} Be7 {[%emt 0:00:48]} 6. Bg2 {[%emt 0:00:18]} O-O {[%emt 0:00:48]} 7. O-O {[%emt 0:00:29]} c6 {[%emt 0:00:18]} 8. e4 {[%emt 0:03:02]} Qc7 {[%emt 0:03:50]} 9. h3 {[%emt 0:02:33]} Rb8 {[%emt 0:04:00]} 10. Be3 {[%emt 0:08:12]} b5 {[%emt 0:06:16]} 11. cxb5 {[%emt 0:06:27]} cxb5 {[%emt 0:01:15]} 12. Rc1 {[%emt 0:19:00]} Qa5 {[%emt 0:02:31]} 13. Nd2 {[%emt 0:05:09]} Nb6 {[%emt 0:10:46]} 14. Nb3 {[%emt 0:08:18]} Qa6 {[%emt 0:00:17]} 15. dxe5 {[%emt 0:02:10]} dxe5 {[%emt 0:00:44]} 16. Bc5 {[%emt 0:00:49]} Bxc5 {[%emt 0:04:15]} 17. Nxc5 {[%emt 0:00:02]} Qa5 {[%emt 0:00:10]} 18. Qd6 {[%emt 0:03:05]} Bb7 {[%emt 0:10:15]} 19. b4 {[%emt 0:03:52]} Qa3 {[%emt 0:02:36]} 20. Nxb7 {[%emt 0:03:56]} Rxb7 {[%emt 0:01:18]} 21. Nxb5 {[%emt 0:00:54]} Qxa2 {[%emt 0:01:43]} 22. Ra1 {[%emt 0:01:37]} Qe2 {[%emt 0:00:47]} 23. Qc6 {[%emt 0:01:52]} Rbb8 {[%emt 0:05:24]} 24. Rfe1 {[%emt 0:09:11]} Qd2 {[%emt 0:01:43]} 25. Nxa7 {[%emt 0:01:51]} Nc8 {[%emt 0:04:56]} 26. Nb5 {[%emt 0:18:48]} Qxb4 27. Na7 {[%emt 0:00:30]} Qd2 28. Qc5 {[%emt 0:00:30]} Nxa7 {[%emt 0:37:40]} 29. Qxa7 {[%emt 0:00:30]} Rb4 30. Qe3 {[%emt 0:00:00]} 1/2-1/2

[Event "51st La Roda Open 2025"]
[Site "La Roda"]
[Date "2025.04.17"]
[Round "4.16"]
[White "Rumbos Garcia, Alejandro Daniel"]
[Black "Gonzalez Manchon, Juan Miguel"]
[Result "1-0"]
[Annotator "RC"]
[ECO "A36"]
[WhiteElo "2178"]
[BlackElo "1988"]
[PlyCount "62"]
[EventDate "2025.04.15"]
[EventType "swiss"]
[EventCountry "ESP"]
[SourceTitle "playchess.com"]
[Source "ChessBase"]
[SourceQuality "1"]
[TimeControl "5400+30"]

1. c4 {[%emt 0:07:26]} Nf6 {[%emt 0:00:07]} 2. Nc3 {[%emt 0:00:06]} g6 {[%emt 0:02:07]} 3. e4 {[%emt 0:00:06]} d6 {[%emt 0:01:07]} 4. g3 {[%emt 0:00:06]} Bg7 {[%emt 0:01:37]} 5. Bg2 {[%emt 0:00:06]} c5 {[%emt 0:08:18]} 6. Nge2 {[%emt 0:00:09]} Nc6 {[%emt 0:03:35]} 7. d3 {[%emt 0:00:08]} O-O {[%emt 0:05:17]} 8. O-O {[%emt 0:00:08]} Ne8 {[%emt 0:01:37]} 9. Be3 {[%emt 0:00:13]} Nd4 {[%emt 0:06:00]} 10. Rb1 {[%emt 0:02:40]} a6 {[%emt 0:02:01]} 11. a3 {[%emt 0:01:09]} Rb8 {[%emt 0:06:31]} 12. b4 {[%emt 0:00:45]} Bd7 {[%emt 0:03:38]} 13. f4 {[%emt 0:11:14]} Nxe2+ {[%emt 0:08:40]} 14. Nxe2 {[%emt 0:00:09]} Qc8 {[%emt 0:01:48]} 15. bxc5 {[%emt 0:02:18]} dxc5 {[%emt 0:00:12]} 16. Qd2 {[%emt 0:00:06]} Nf6 {[%emt 0:04:24]} 17. Kh1 {[%emt 0:07:28]} Rd8 {[%emt 0:02:27]} 18. Nc3 {[%emt 0:08:08]} Bh3 {[%emt 0:04:55]} 19. Rfd1 {[%emt 0:03:18]} Bxg2+ {[%emt 0:00:39]} 20. Kxg2 {[%emt 0:00:11]} e6 {[%emt 0:04:37]} 21. h3 {[%emt 0:06:57]} Qc6 {[%emt 0:01:41]} 22. Kh2 {[%emt 0:02:53]} h5 {[%emt 0:02:43]} 23. a4 {[%emt 0:04:46]} Rd7 {[%emt 0:05:56]} 24. a5 {[%emt 0:04:41]} Rbd8 {[%emt 0:01:41]} 25. Qc2 {[%emt 0:00:25]} Qc7 {[%emt 0:04:33]} 26. e5 {[%emt 0:04:06]} Ne8 {[%emt 0:00:03]} 27. Na4 {[%emt 0:00:50]} h4 {[%emt 0:01:56]} 28. Nxc5 {[%emt 0:00:23]} hxg3+ {[%emt 0:00:08]} 29. Kxg3 {[%emt 0:01:24]} g5 {[%emt 0:02:37]} 30. Nxd7 {[%emt 0:02:54]} Rxd7 {[%emt 0:00:36]} 31. d4 {[%emt 0:00:24]} Bf8 {[%emt 0:06:15]} 1-0

[Event "51st La Roda Open 2025"]
[Site "La Roda"]
[Date "2025.04.17"]
[Round "4.17"]
[White "Santos, Antonio P"]
[Black "Siscar Conill, Aitor"]
[Result "1-0"]
[Annotator "RC"]
[ECO "E06"]
[WhiteElo "2152"]
[BlackElo "1986"]
[PlyCount "43"]
[EventDate "2025.04.15"]
[EventType "swiss"]
[EventCountry "ESP"]
[SourceTitle "playchess.com"]
[Source "ChessBase"]
[SourceQuality "1"]
[TimeControl "5400+30"]

1. d4 {[%emt 0:06:10]} d5 {[%emt 1:31:00]} 2. c4 {[%emt 0:00:08]} c6 {[%emt 0:00:00]} 3. Nf3 {[%emt 0:00:09]} e6 {[%emt 0:00:00]} 4. Qc2 {[%emt 0:01:59]} Nf6 {[%emt 0:00:00]} 5. g3 {[%emt 0:00:18]} Be7 {[%emt 0:00:00]} 6. Bg2 {[%emt 0:00:10]} O-O {[%emt 0:00:00]} 7. O-O {[%emt 0:00:09]} b6 {[%emt 0:00:00]} 8. Rd1 {[%emt 0:13:05]} Bb7 {[%emt 0:00:00]} 9. Nc3 {[%emt 0:00:15]} Qc8 {[%emt 0:00:00]} 10. Bf4 {[%emt 0:18:59]} dxc4 {[%emt 0:00:00]} 11. Ne5 {[%emt 0:00:23]} Nd5 {[%emt 0:00:00]} 12. Nxc4 {[%emt 0:00:58]} Nxf4 {[%emt 0:00:00]} 13. gxf4 {[%emt 0:00:02]} c5 {[%emt 0:00:00]} 14. d5 {[%emt 0:00:42]} f5 {[%emt 0:00:00]} 15. d6 {[%emt 0:05:19]} Bh4 {[%emt 0:00:00]} 16. d7 {[%emt 0:00:32]} Qc7 {[%emt 0:00:00]} 17. Nb5 {[%emt 0:01:02]} Qxf4 {[%emt 0:00:00]} 18. Bxb7 {[%emt 0:00:23]} Nxd7 {[%emt 0:00:00]} 19. Rxd7 {[%emt 0:00:47]} Rf6 {[%emt 0:00:00]} 20. e3 {[%emt 0:03:32]} Rg6+ {[%emt 0:02:14]} 21. Kh1 {[%emt 0:00:48]} Qg4 {[%emt 0:01:22]} 22. Ne5 {[%emt 0:00:51]} 1-0

[Event "51st La Roda Open 2025"]
[Site "La Roda"]
[Date "2025.04.17"]
[Round "4.18"]
[White "Gomez Falagan, Hugo"]
[Black "Rodriguez Garcia, Manuel Francisco"]
[Result "0-1"]
[Annotator "NA RC"]
[ECO "B22"]
[WhiteElo "2000"]
[BlackElo "2131"]
[PlyCount "82"]
[EventDate "2025.04.15"]
[EventType "swiss"]
[EventCountry "ESP"]
[SourceTitle "playchess.com"]
[Source "ChessBase"]
[SourceQuality "1"]
[TimeControl "5400+30"]

1. e4 {[%emt 0:00:03]} c5 {[%emt 0:00:04]} 2. c3 {[%emt 0:00:04]} d5 {[%emt 0:00:18]} 3. exd5 {[%emt 0:00:05]} Qxd5 {[%emt 0:00:04]} 4. d4 {[%emt 0:00:06]} Bf5 {[%emt 0:00:04]} 5. Nf3 {[%emt 0:01:02]} Nc6 {[%emt 0:00:04]} 6. Na3 {[%emt 0:00:13]} cxd4 {[%emt 0:00:28]} 7. Nb5 {[%emt 0:00:05]} O-O-O {[%emt 0:00:10]} 8. cxd4 {[%emt 0:15:03]} e5 {[%emt 0:00:56]} 9. Nc3 {[%emt 0:07:43]} Qa5 {[%emt 0:17:17]} 10. Bd2 {[%emt 0:09:35]} exd4 {[%emt 0:01:39]} 11. Nxd4 {[%emt 0:26:28]} Rxd4 {[%emt 0:21:10]} 12. Be2 {[%emt 0:06:40]} Bb4 {[%emt 0:07:18]} 13. Qb3 {[%emt 0:02:26]} Nf6 {[%emt 0:04:10]} 14. Be3 {[%emt 0:00:40]} Be6 {[%emt 0:03:04]} 15. Qc2 {[%emt 0:01:03]} Bxc3+ {[%emt 0:00:11]} 16. bxc3 {[%emt 0:00:29]} Ra4 {[%emt 0:00:13]} 17. O-O {[%emt 0:01:21]} Rxa2 {[%emt 0:00:07]} 18. Rxa2 {[%emt 0:00:27]} Qxa2 {[%emt 0:00:06]} 19. Qd3 {[%emt 0:01:10]} Rd8 {[%emt 0:00:25]} 20. Bd4 {[%emt 0:00:29]} Nd5 {[%emt 0:07:45]} 21. Bf3 {[%emt 0:01:44]} Nxd4 {[%emt 0:02:08]} 22. cxd4 {[%emt 0:01:24]} Qa6 {[%emt 0:00:17]} 23. Qxh7 {[%emt 0:01:38]} g6 {[%emt 0:00:33]} 24. Qh6 {[%emt 0:01:03]} Kb8 {[%emt 0:01:29]} 25. Qg5 {[%emt 0:02:34]} Qd6 {[%emt 0:01:22]} 26. Rb1 {[%emt 0:00:46]} Nb6 {[%emt 0:00:41]} 27. h4 {[%emt 0:01:20]} Bd5 {[%emt 0:01:38]} 28. Bxd5 {[%emt 0:01:02]} Qxd5 {[%emt 0:00:27]} 29. Qf4+ {[%emt 0:00:06]} Ka8 {[%emt 0:00:26]} 30. Rd1 {[%emt 0:00:59]} a5 {[%emt 0:00:50]} 31. Qc7 {[%emt 0:00:40]} Ka7 {[%emt 0:01:37]} 32. Rb1 {[%emt 0:02:23]} Rd6 {[%emt 0:01:03]} 33. Qc3 {[%emt 0:00:59]} Rc6 {[%emt 0:02:01]} 34. Qd2 {[%emt 0:00:31]} Rc4 {[%emt 0:03:06]} 35. Rd1 {[%emt 0:02:05]} Na4 {[%emt 0:02:59]} 36. g3 {[%emt 0:00:44]} Nc3 {[%emt 0:01:47]} 37. Ra1 {[%emt 0:00:32]} a4 {[%emt 0:00:35]} 38. Qe1 {[%emt 0:03:59]} Qxd4 {[%emt 0:01:11]} 39. Kh2 {[%emt 0:00:34]} Qc5 {[%emt 0:00:58]} 40. Qd2 {[%emt 0:01:24]} Ne4 {[%emt 0:00:47]} 41. Qd1 {[%emt 0:00:37]} Qxf2+ {[%emt 0:00:07]} 0-1

[Event "51st La Roda Open 2025"]
[Site "La Roda"]
[Date "2025.04.18"]
[Round "6.1"]
[White "Fier, Alexandr"]
[Black "Pranav Vijay"]
[Result "1/2-1/2"]
[Annotator "RC"]
[ECO "C43"]
[WhiteElo "2534"]
[BlackElo "2252"]
[PlyCount "83"]
[EventDate "2025.04.15"]
[EventType "swiss"]
[EventCountry "ESP"]
[SourceTitle "playchess.com"]
[Source "ChessBase"]
[SourceQuality "1"]
[TimeControl "5400+30"]

1. e4 {[%emt 0:00:03]} e5 {[%emt 0:00:07]} 2. Nf3 {[%emt 0:00:03]} Nf6 {[%emt 0:00:10]} 3. d4 {[%emt 0:02:22]} Nxe4 {[%emt 0:00:21]} 4. Bd3 {[%emt 0:00:04]} d5 {[%emt 0:00:27]} 5. Nxe5 {[%emt 0:00:13]} Bd6 {[%emt 0:00:24]} 6. O-O {[%emt 0:03:59]} O-O {[%emt 0:00:10]} 7. c4 {[%emt 0:00:04]} c5 {[%emt 0:00:42]} 8. cxd5 {[%emt 0:02:18]} Nf6 {[%emt 0:01:17]} 9. Bg5 {[%emt 0:02:42]} cxd4 {[%emt 0:00:25]} 10. Nf3 {[%emt 0:00:05]} Be7 {[%emt 0:24:51]} 11. Bc4 {[%emt 0:02:25]} h6 {[%emt 0:03:17]} 12. Bh4 {[%emt 0:00:20]} g5 {[%emt 0:12:43]} 13. Bg3 {[%emt 0:00:17]} Nxd5 {[%emt 0:00:08]} 14. Qxd4 {[%emt 0:05:41]} Nb6 {[%emt 0:07:50]} 15. Qxd8 {[%emt 0:00:38]} Rxd8 {[%emt 0:00:10]} 16. Bb3 {[%emt 0:00:21]} Bf6 {[%emt 0:02:27]} 17. Ne5 {[%emt 0:02:22]} Nd5 {[%emt 0:06:09]} 18. Nd2 {[%emt 0:03:58]} Nc6 {[%emt 0:01:47]} 19. Nxc6 {[%emt 0:01:43]} bxc6 {[%emt 0:00:03]} 20. Nc4 {[%emt 0:03:02]} Nf4 {[%emt 0:00:38]} 21. Rfe1 {[%emt 0:05:55]} Be6 {[%emt 0:03:40]} 22. Bxf4 {[%emt 0:04:45]} gxf4 {[%emt 0:00:24]} 23. Rac1 {[%emt 0:00:07]} Rac8 {[%emt 0:10:31]} 24. Na5 {[%emt 0:05:53]} Bxb3 {[%emt 0:05:34]} 25. Nxb3 {[%emt 0:00:06]} Bxb2 {[%emt 0:00:46]} 26. Rc2 {[%emt 0:00:08]} Ba3 {[%emt 0:00:51]} 27. Kf1 {[%emt 0:00:05]} Bb4 {[%emt 0:04:15]} 28. Rec1 {[%emt 0:01:23]} c5 {[%emt 0:04:57]} 29. Rc4 {[%emt 0:00:21]} a5 {[%emt 0:00:46]} 30. Nxc5 {[%emt 0:02:30]} Rd2 {[%emt 0:00:10]} 31. Na6 {[%emt 0:02:52]} Rxc4 {[%emt 0:00:08]} 32. Rxc4 {[%emt 0:00:03]} Rxa2 {[%emt 0:00:05]} 33. Nxb4 {[%emt 0:00:03]} axb4 {[%emt 0:00:05]} 34. Rxb4 {[%emt 0:00:02]} f3 {[%emt 0:00:06]} 35. gxf3 {[%emt 0:00:04]} Kg7 {[%emt 0:00:08]} 36. Kg2 {[%emt 0:00:04]} Ra1 {[%emt 0:00:06]} 37. Rb6 {[%emt 0:00:04]} Rc1 {[%emt 0:00:05]} 38. h4 {[%emt 0:00:04]} Rc5 {[%emt 0:00:58]} 39. Kg3 {[%emt 0:00:04]} h5 {[%emt 0:00:06]} 40. Rb4 {[%emt 0:00:08]} Kg6 {[%emt 0:00:05]} 41. Kf4 {[%emt 0:00:06]} f6 {[%emt 0:00:08]} 42. Ke4 {[%emt 0:54:03]} 1/2-1/2

[Event "51st La Roda Open 2025"]
[Site "La Roda"]
[Date "2025.04.18"]
[Round "6.2"]
[White "Lopez Martinez, Josep Manuel"]
[Black "Albornoz Cabrera, Carlos Daniel"]
[Result "1/2-1/2"]
[Annotator "TA"]
[ECO "D39"]
[WhiteElo "2460"]
[BlackElo "2561"]
[PlyCount "40"]
[EventDate "2025.04.15"]
[EventType "swiss"]
[EventCountry "ESP"]
[SourceTitle "playchess.com"]
[Source "ChessBase"]
[SourceQuality "1"]
[TimeControl "5400+30"]

{[%evp 15,40,22,9,6,16,27,24,22,16,21,23,23,20,27,41,37,39,32,29,29,33,34,34,34,38,32,36]} 1. d4 {[%emt 0:06:21]} Nf6 {[%emt 0:00:05]} 2. c4 {[%emt 0:00:21]} e6 {[%emt 0:00:05]} 3. Nf3 {[%emt 0:00:44]} d5 {[%emt 0:00:06]} 4. Nc3 {[%emt 0:00:27]} Bb4 {[%emt 0:00:12]} 5. Bg5 {[%emt 0:03:55]} dxc4 {[%emt 0:00:05]} 6. e4 {[%emt 0:00:21]} h6 {[%emt 0:01:27]} 7. Bxf6 {[%emt 0:00:21]} Qxf6 {[%emt 0:00:03]} 8. Bxc4 {[%emt 0:00:08]} c5 {[%emt 0:00:03]} 9. O-O {[%emt 0:00:21] aiming for Nb5. D39: Queen's Gambit Declined: Ragozin Defence with 5 Bg5 dxc4.} cxd4 {[%emt 0:00:26]} 10. Nb5 {[%emt 0:00:34]} Qe7 {[%emt 0:00:53] Prevents Nc7+} 11. Qxd4 {[%emt 0:00:09] White has an edge.} O-O {[%emt 0:00:11]} 12. Nxa7 {[%emt 0:00:13]} Bc5 {[%emt 0:00:29] Black is weak on the light squares} 13. Nxc8 {[%emt 0:00:18]} Rxc8 {[%emt 0:00:41]} 14. Qd3 {[%emt 0:01:22]} Rd8 {[%emt 0:08:45]} 15. Qe2 {[%emt 0:00:46]} Nc6 {[%emt 0:00:35]} 16. Rad1 {[%emt 0:00:55]} Rxd1 {[%emt 0:16:35]} 17. Rxd1 {[%emt 0:00:29]} Rd8 {[%emt 0:00:04]} 18. Rxd8+ {[%emt 0:11:02] White is slightly better.} Qxd8 {[%emt 0:00:02]} 19. g3 {[%emt 0:04:18]} g5 $146 {[%emt 0:01:32]} (19... Nd4 20. Nxd4 Qxd4 21. Kg2 g5 22. a3 h5 23. h3 Kf8 24. a4 b6 25. b3 g4 26. hxg4 hxg4 {½-½ Fridman,D (2608)-Meier,G (2628) Dortmund GER Grand Prix 2021 (9)}) 20. h3 {[%emt 0:00:33]} Nd4 {[%emt 0:10:18] Weighted Error Value: White=0.01 (flawless) /Black=0.03 (flawless)   OK:         	White=6     	Black=6      Best:        	White=1     	---} 1/2-1/2